[Event "Titled Tuesday Blitz October 5 2021"]
[White "Dang, Hoang Son"]
[Black "Dzhaparov, Medet"]
[WhiteFideId "12402435"]
[BlackFideId "13803689"]
[WhiteElo "2248"]
[BlackElo "1702"]
[Result "1-0"]
[Round "10"]
[TimeControl "180+1"]
[Date "2021.10.05"]
[WhiteClock "0:00:11"]
[BlackClock "0:00:03"]

1. d4 {[%clk 0:02:49]}  Nf6 {[%clk 0:02:58]} 2. Nc3 {[%clk 0:02:49]}  d5 {[%clk 0:02:58]} 3. Bg5 {[%clk 0:02:48]}  c5 {[%clk 0:02:51]} 4. e3 {[%clk 0:02:48]}  Nc6 {[%clk 0:02:49]} 5. Nf3 {[%clk 0:02:47]}  e6 {[%clk 0:02:46]} 6. Bb5 {[%clk 0:02:46]}  cxd4 {[%clk 0:02:39]} 7. exd4 {[%clk 0:02:44]}  Be7 {[%clk 0:02:38]} 8. O-O {[%clk 0:02:43]}  O-O {[%clk 0:02:38]} 9. a3 {[%clk 0:02:39]}  Ne4 {[%clk 0:02:33]} 10. Bxe7 {[%clk 0:02:37]}  Qxe7 {[%clk 0:02:29]} 11. Nxe4 {[%clk 0:02:35]}  dxe4 {[%clk 0:02:29]} 12. Bxc6 {[%clk 0:02:35]}  bxc6 {[%clk 0:02:30]} 13. Nd2 {[%clk 0:02:34]}  f5 {[%clk 0:02:29]} 14. Nb3 {[%clk 0:02:28]}  Ba6 {[%clk 0:02:23]} 15. Re1 {[%clk 0:02:27]}  e5 {[%clk 0:02:22]} 16. dxe5 {[%clk 0:02:21]}  Rad8 {[%clk 0:02:18]} 17. Nd4 {[%clk 0:02:14]}  Bb7 {[%clk 0:02:00]} 18. b4 {[%clk 0:01:46]}  Qxe5 {[%clk 0:01:55]} 19. c3 {[%clk 0:01:45]}  c5 {[%clk 0:01:36]} 20. bxc5 {[%clk 0:01:36]}  Qxc5 {[%clk 0:01:35]} 21. Ne6 {[%clk 0:01:32]}  Rxd1 {[%clk 0:01:34]} 22. Nxc5 {[%clk 0:01:33]}  Rxa1 {[%clk 0:01:30]} 23. Rxa1 {[%clk 0:01:34]}  Bc6 {[%clk 0:01:21]} 24. Kf1 {[%clk 0:01:25]}  Rd8 {[%clk 0:01:19]} 25. Ke1 {[%clk 0:01:24]}  Rd5 {[%clk 0:01:18]} 26. Nb3 {[%clk 0:01:24]}  Rd3 {[%clk 0:01:09]} 27. Rc1 {[%clk 0:01:23]}  f4 {[%clk 0:01:05]} 28. Nd4 {[%clk 0:01:08]}  Bd5 {[%clk 0:01:05]} 29. Ne2 {[%clk 0:01:08]}  g5 {[%clk 0:01:03]} 30. c4 {[%clk 0:01:04]}  Bc6 {[%clk 0:01:00]} 31. Rc3 {[%clk 0:00:58]}  Rd8 {[%clk 0:00:53]} 32. g3 {[%clk 0:00:39]}  f3 {[%clk 0:00:45]} 33. Nc1 {[%clk 0:00:38]}  a5 {[%clk 0:00:29]} 34. Nb3 {[%clk 0:00:37]}  a4 {[%clk 0:00:26]} 35. Nd2 {[%clk 0:00:35]}  Rb8 {[%clk 0:00:24]} 36. Re3 {[%clk 0:00:28]}  Re8 {[%clk 0:00:10]} 37. Kd1 {[%clk 0:00:27]}  Kf7 {[%clk 0:00:09]} 38. Kc2 {[%clk 0:00:23]}  Kf6 {[%clk 0:00:09]} 39. Nf1 {[%clk 0:00:20]}  Rd8 {[%clk 0:00:07]} 40. Rc3 {[%clk 0:00:17]}  h5 {[%clk 0:00:04]} 41. Ne3 {[%clk 0:00:16]}  Ke5 {[%clk 0:00:04]} 42. c5 {[%clk 0:00:13]}  Bb5 {[%clk 0:00:04]} 43. c6 {[%clk 0:00:12]}  Rc8 {[%clk 0:00:03]} 44. Rc5+ {[%clk 0:00:12]}  Kd6 {[%clk 0:00:02]} 45. Rxb5 {[%clk 0:00:11]}  Rxc6+ {[%clk 0:00:03]} 46. Kd2 {[%clk 0:00:11]} 1-0


[Site "https://www.chess.com"]

[Event "Titled Tuesday Blitz October 5 2021"]
[White "Estrada Nieto, Julian"]
[Black "Gasanov, Zaur"]
[WhiteFideId "5101018"]
[BlackFideId "34125970"]
[WhiteElo "2270"]
[BlackElo "2099"]
[Result "0-1"]
[Round "10"]
[TimeControl "180+1"]
[Date "2021.10.05"]
[WhiteClock "0:00:09"]
[BlackClock "0:00:18"]

1. e4 {[%clk 0:03:00]}  c5 {[%clk 0:02:58]} 2. Nf3 {[%clk 0:03:00]}  e6 {[%clk 0:02:58]} 3. c3 {[%clk 0:03:00]}  d5 {[%clk 0:02:58]} 4. exd5 {[%clk 0:03:00]}  Qxd5 {[%clk 0:02:58]} 5. d4 {[%clk 0:03:01]}  Nf6 {[%clk 0:02:58]} 6. Be2 {[%clk 0:02:57]}  Nc6 {[%clk 0:02:56]} 7. O-O {[%clk 0:02:55]}  Be7 {[%clk 0:02:55]} 8. Be3 {[%clk 0:02:55]}  cxd4 {[%clk 0:02:55]} 9. cxd4 {[%clk 0:02:55]}  O-O {[%clk 0:02:55]} 10. Nc3 {[%clk 0:02:55]}  Qd8 {[%clk 0:02:55]} 11. Ne5 {[%clk 0:02:55]}  Nb4 {[%clk 0:02:47]} 12. Bf3 {[%clk 0:02:50]}  Nbd5 {[%clk 0:02:45]} 13. Qb3 {[%clk 0:02:41]}  Qb6 {[%clk 0:02:16]} 14. Qxb6 {[%clk 0:02:20]}  axb6 {[%clk 0:02:03]} 15. Nxd5 {[%clk 0:02:14]}  Nxd5 {[%clk 0:02:01]} 16. Rfc1 {[%clk 0:01:58]}  Nxe3 {[%clk 0:01:41]} 17. fxe3 {[%clk 0:01:57]}  Bg5 {[%clk 0:01:41]} 18. Kf2 {[%clk 0:01:55]}  f6 {[%clk 0:01:41]} 19. Nc4 {[%clk 0:01:44]}  Bd7 {[%clk 0:01:18]} 20. Nxb6 {[%clk 0:01:40]}  Rad8 {[%clk 0:01:17]} 21. Rc7 {[%clk 0:01:28]}  Be8 {[%clk 0:01:10]} 22. Bxb7 {[%clk 0:01:19]}  e5 {[%clk 0:01:08]} 23. d5 {[%clk 0:01:06]}  f5 {[%clk 0:01:07]} 24. Re1 {[%clk 0:00:46]}  f4 {[%clk 0:00:59]} 25. e4 {[%clk 0:00:39]}  Bh4+ {[%clk 0:00:58]} 26. Kf1 {[%clk 0:00:38]}  Bxe1 {[%clk 0:00:56]} 27. Kxe1 {[%clk 0:00:38]}  f3 {[%clk 0:00:57]} 28. Kf2 {[%clk 0:00:28]}  fxg2+ {[%clk 0:00:52]} 29. Kxg2 {[%clk 0:00:28]}  Rd6 {[%clk 0:00:52]} 30. Nc4 {[%clk 0:00:14]}  Rg6+ {[%clk 0:00:50]} 31. Kh3 {[%clk 0:00:14]}  Rf3+ {[%clk 0:00:36]} 32. Kh4 {[%clk 0:00:13]}  Rf4+ {[%clk 0:00:35]} 33. Kh3 {[%clk 0:00:12]}  Rg1 {[%clk 0:00:21]} 34. d6 {[%clk 0:00:09]}  g5 {[%clk 0:00:19]} 35. Bd5+ {[%clk 0:00:09]}  Kh8 {[%clk 0:00:18]} 0-1


[Site "https://www.chess.com"]

[Event "Titled Tuesday Blitz October 5 2021"]
[White "Fier, Alexandr"]
[Black "Khoroshev, Nikita"]
[WhiteFideId "2107139"]
[BlackFideId "14200287"]
[WhiteElo "2569"]
[BlackElo "2376"]
[Result "1-0"]
[Round "10"]
[TimeControl "180+1"]
[Date "2021.10.05"]
[WhiteClock "0:01:23"]
[BlackClock "0:00:03"]

1. e4 {[%clk 0:03:00]}  e5 {[%clk 0:02:54]} 2. Nc3 {[%clk 0:03:00]}  Nf6 {[%clk 0:02:53]} 3. f4 {[%clk 0:03:01]}  Bb4 {[%clk 0:02:46]} 4. fxe5 {[%clk 0:02:58]}  Bxc3 {[%clk 0:02:46]} 5. bxc3 {[%clk 0:02:58]}  Nxe4 {[%clk 0:02:43]} 6. Nf3 {[%clk 0:02:59]}  d5 {[%clk 0:02:39]} 7. c4 {[%clk 0:02:57]}  d4 {[%clk 0:02:32]} 8. d3 {[%clk 0:02:57]}  Nc5 {[%clk 0:02:25]} 9. Be2 {[%clk 0:02:57]}  Ne6 {[%clk 0:02:22]} 10. O-O {[%clk 0:02:56]}  c5 {[%clk 0:02:23]} 11. Qe1 {[%clk 0:02:50]}  O-O {[%clk 0:02:21]} 12. Qg3 {[%clk 0:02:51]}  Nc6 {[%clk 0:02:12]} 13. h4 {[%clk 0:02:45]}  f5 {[%clk 0:02:03]} 14. exf6 {[%clk 0:02:43]}  Rxf6 {[%clk 0:02:03]} 15. Bg5 {[%clk 0:02:42]}  Rg6 {[%clk 0:01:49]} 16. Qf2 {[%clk 0:02:14]}  Qf8 {[%clk 0:01:41]} 17. Rab1 {[%clk 0:02:04]}  h6 {[%clk 0:01:33]} 18. Bd2 {[%clk 0:02:04]}  Nf4 {[%clk 0:01:26]} 19. Bxf4 {[%clk 0:02:02]}  Qxf4 {[%clk 0:01:27]} 20. h5 {[%clk 0:02:01]}  Rg3 {[%clk 0:01:22]} 21. Nh2 {[%clk 0:01:50]}  Qxf2+ {[%clk 0:00:59]} 22. Kxf2 {[%clk 0:01:48]}  Rg5 {[%clk 0:00:53]} 23. Bf3 {[%clk 0:01:47]}  Ne5 {[%clk 0:00:46]} 24. Bxb7 {[%clk 0:01:42]}  Bxb7 {[%clk 0:00:46]} 25. Rxb7 {[%clk 0:01:43]}  Rxh5 {[%clk 0:00:43]} 26. Kg1 {[%clk 0:01:43]}  Rg5 {[%clk 0:00:34]} 27. Rc7 {[%clk 0:01:43]}  h5 {[%clk 0:00:31]} 28. Kh1 {[%clk 0:01:42]}  Ng6 {[%clk 0:00:21]} 29. Nf3 {[%clk 0:01:41]}  Rf5 {[%clk 0:00:17]} 30. Rb1 {[%clk 0:01:41]}  Raf8 {[%clk 0:00:13]} 31. Rbb7 {[%clk 0:01:41]}  R8f7 {[%clk 0:00:13]} 32. Rxa7 {[%clk 0:01:42]}  Rxc7 {[%clk 0:00:12]} 33. Rxc7 {[%clk 0:01:42]}  h4 {[%clk 0:00:10]} 34. Kh2 {[%clk 0:01:42]}  Nf4 {[%clk 0:00:10]} 35. Nxh4 {[%clk 0:01:40]}  Rh5 {[%clk 0:00:09]} 36. Kg3 {[%clk 0:01:41]}  Ne2+ {[%clk 0:00:09]} 37. Kg4 {[%clk 0:01:41]}  Rh6 {[%clk 0:00:08]} 38. Nf5 {[%clk 0:01:41]}  Rg6+ {[%clk 0:00:08]} 39. Kf3 {[%clk 0:01:41]}  Rf6 {[%clk 0:00:08]} 40. Kg4 {[%clk 0:01:40]}  Rg6+ {[%clk 0:00:04]} 41. Kh5 {[%clk 0:01:41]}  Nf4+ {[%clk 0:00:04]} 42. Kh4 {[%clk 0:01:40]}  Nxg2+ {[%clk 0:00:04]} 43. Kh3 {[%clk 0:01:41]}  Nf4+ {[%clk 0:00:04]} 44. Kh2 {[%clk 0:01:41]}  Rg5 {[%clk 0:00:04]} 45. Rxc5 {[%clk 0:01:39]}  Ne6 {[%clk 0:00:03]} 46. Rc8+ {[%clk 0:01:36]}  Kh7 {[%clk 0:00:03]} 47. Ng3 {[%clk 0:01:36]}  Nf4 {[%clk 0:00:03]} 48. Rf8 {[%clk 0:01:34]}  Ng6 {[%clk 0:00:03]} 49. Rd8 {[%clk 0:01:32]}  Nh4 {[%clk 0:00:03]} 50. Kh3 {[%clk 0:01:31]}  Nf3 {[%clk 0:00:03]} 51. Rf8 {[%clk 0:01:31]}  Ng1+ {[%clk 0:00:02]} 52. Kg2 {[%clk 0:01:31]}  Ne2 {[%clk 0:00:02]} 53. Rf3 {[%clk 0:01:32]}  Nc3 {[%clk 0:00:02]} 54. Kh3 {[%clk 0:01:30]}  Ra5 {[%clk 0:00:03]} 55. Nf5 {[%clk 0:01:28]}  Nxa2 {[%clk 0:00:04]} 56. Nxd4 {[%clk 0:01:28]}  Nc3 {[%clk 0:00:04]} 57. Rf5 {[%clk 0:01:28]}  Ra1 {[%clk 0:00:04]} 58. Kg2 {[%clk 0:01:27]}  Re1 {[%clk 0:00:03]} 59. c5 {[%clk 0:01:27]}  Nd1 {[%clk 0:00:02]} 60. c6 {[%clk 0:01:24]}  Re7 {[%clk 0:00:01]} 61. Rc5 {[%clk 0:01:23]}  Ne3+ {[%clk 0:00:02]} 62. Kf2 {[%clk 0:01:23]}  Nd1+ {[%clk 0:00:02]} 63. Kf3 {[%clk 0:01:23]}  Rf7+ {[%clk 0:00:02]} 64. Ke2 {[%clk 0:01:23]}  Nf2 {[%clk 0:00:03]} 65. c7 {[%clk 0:01:23]}  Rxc7 {[%clk 0:00:03]} 66. Rxc7 {[%clk 0:01:23]} 1-0


[Site "https://www.chess.com"]

[Event "Titled Tuesday Blitz October 5 2021"]
[White "Gabrielian, Artur"]
[Black "Florescu, Codrut-Constantin"]
[WhiteFideId "4131002"]
[BlackFideId "1202200"]
[WhiteElo "2489"]
[BlackElo "2243"]
[Result "1-0"]
[Round "10"]
[TimeControl "180+1"]
[Date "2021.10.05"]
[WhiteClock "0:01:25"]
[BlackClock "0:00:46"]

1. e4 {[%clk 0:03:00]}  c5 {[%clk 0:02:59]} 2. Nf3 {[%clk 0:03:00]}  e6 {[%clk 0:02:59]} 3. d4 {[%clk 0:03:00]}  cxd4 {[%clk 0:03:00]} 4. Nxd4 {[%clk 0:03:00]}  Nf6 {[%clk 0:03:00]} 5. Nc3 {[%clk 0:03:00]}  d6 {[%clk 0:03:01]} 6. g4 {[%clk 0:03:00]}  a6 {[%clk 0:03:01]} 7. g5 {[%clk 0:03:00]}  Nfd7 {[%clk 0:03:02]} 8. h4 {[%clk 0:03:00]}  b5 {[%clk 0:03:02]} 9. a3 {[%clk 0:02:51]}  Bb7 {[%clk 0:03:00]} 10. Be3 {[%clk 0:02:51]}  Nc6 {[%clk 0:03:00]} 11. Rg1 {[%clk 0:02:47]}  Rc8 {[%clk 0:02:58]} 12. h5 {[%clk 0:02:43]}  Nce5 {[%clk 0:02:58]} 13. Be2 {[%clk 0:02:41]}  Be7 {[%clk 0:02:50]} 14. f4 {[%clk 0:02:39]}  Nc4 {[%clk 0:02:50]} 15. Bxc4 {[%clk 0:02:39]}  Rxc4 {[%clk 0:02:51]} 16. Qe2 {[%clk 0:02:33]}  Rxc3 {[%clk 0:02:46]} 17. bxc3 {[%clk 0:02:33]}  Bxe4 {[%clk 0:02:47]} 18. g6 {[%clk 0:02:33]}  hxg6 {[%clk 0:02:35]} 19. hxg6 {[%clk 0:02:31]}  Nf6 {[%clk 0:02:35]} 20. gxf7+ {[%clk 0:02:31]}  Kxf7 {[%clk 0:02:36]} 21. Rxg7+ {[%clk 0:02:31]}  Kxg7 {[%clk 0:02:31]} 22. Nxe6+ {[%clk 0:02:31]}  Kg6 {[%clk 0:02:31]} 23. f5+ {[%clk 0:02:16]}  Kxf5 {[%clk 0:02:23]} 24. Nxd8 {[%clk 0:02:15]}  Rh1+ {[%clk 0:02:22]} 25. Kd2 {[%clk 0:02:16]}  Rxa1 {[%clk 0:02:21]} 26. Qf2+ {[%clk 0:02:12]}  Kg6 {[%clk 0:02:20]} 27. Qg3+ {[%clk 0:02:11]}  Kh7 {[%clk 0:02:15]} 28. Ne6 {[%clk 0:02:10]}  Bg6 {[%clk 0:02:12]} 29. Ng5+ {[%clk 0:02:10]}  Kg7 {[%clk 0:02:00]} 30. Bd4 {[%clk 0:02:09]}  Rf1 {[%clk 0:01:47]} 31. Qe3 {[%clk 0:02:00]}  Bf8 {[%clk 0:01:29]} 32. Qe6 {[%clk 0:01:49]}  d5 {[%clk 0:01:12]} 33. Qxa6 {[%clk 0:01:36]}  Rf5 {[%clk 0:01:02]} 34. Ne6+ {[%clk 0:01:35]}  Kf7 {[%clk 0:00:58]} 35. Nxf8 {[%clk 0:01:29]}  Ne4+ {[%clk 0:00:49]} 36. Ke1 {[%clk 0:01:27]}  Bh5 {[%clk 0:00:46]} 37. Qe6+ {[%clk 0:01:25]} 1-0


[Site "https://www.chess.com"]

[Event "Titled Tuesday Blitz October 5 2021"]
[White "Gaehwiler, Gabriel"]
[Black "Nagy, Gabor"]
[WhiteFideId "1314530"]
[BlackFideId "737119"]
[WhiteElo "2320"]
[BlackElo "2534"]
[Result "0-1"]
[Round "10"]
[TimeControl "180+1"]
[Date "2021.10.05"]
[WhiteClock "0:00:34"]
[BlackClock "0:02:06"]

1. d4 {[%clk 0:03:00]}  Nf6 {[%clk 0:02:58]} 2. Nf3 {[%clk 0:02:58]}  g6 {[%clk 0:02:58]} 3. g3 {[%clk 0:02:58]}  Bg7 {[%clk 0:02:59]} 4. c4 {[%clk 0:02:58]}  O-O {[%clk 0:02:59]} 5. Bg2 {[%clk 0:02:59]}  d6 {[%clk 0:02:59]} 6. O-O {[%clk 0:02:59]}  Nbd7 {[%clk 0:03:00]} 7. b3 {[%clk 0:02:59]}  e5 {[%clk 0:02:59]} 8. Bb2 {[%clk 0:03:00]}  e4 {[%clk 0:02:51]} 9. Nfd2 {[%clk 0:02:57]}  e3 {[%clk 0:02:43]} 10. fxe3 {[%clk 0:02:58]}  Ng4 {[%clk 0:02:43]} 11. Rf3 {[%clk 0:02:58]}  Re8 {[%clk 0:02:43]} 12. Nf1 {[%clk 0:02:37]}  f5 {[%clk 0:02:37]} 13. Nc3 {[%clk 0:02:35]}  Ndf6 {[%clk 0:02:36]} 14. Qc2 {[%clk 0:02:31]}  Bd7 {[%clk 0:02:35]} 15. Rd1 {[%clk 0:02:30]}  Bc6 {[%clk 0:02:32]} 16. d5 {[%clk 0:02:29]}  Bd7 {[%clk 0:02:31]} 17. h3 {[%clk 0:02:29]}  Ne5 {[%clk 0:02:30]} 18. Rf2 {[%clk 0:02:28]}  Qe7 {[%clk 0:02:29]} 19. Nb1 {[%clk 0:02:25]}  h5 {[%clk 0:02:22]} 20. Nbd2 {[%clk 0:02:18]}  h4 {[%clk 0:02:21]} 21. e4 {[%clk 0:02:11]}  Nh5 {[%clk 0:02:17]} 22. exf5 {[%clk 0:02:03]}  hxg3 {[%clk 0:02:12]} 23. Nxg3 {[%clk 0:01:22]}  Nxg3 {[%clk 0:02:13]} 24. f6 {[%clk 0:01:06]}  Bxf6 {[%clk 0:02:11]} 25. c5 {[%clk 0:00:45]}  Bg7 {[%clk 0:02:08]} 26. e4 {[%clk 0:00:34]}  Rf8 {[%clk 0:02:06]} 0-1


[Site "https://www.chess.com"]

[Event "Titled Tuesday Blitz October 5 2021"]
[White "Gallo Garcia, Kemel Antonio"]
[Black "Diakonova, Ekaterina"]
[WhiteFideId "3523896"]
[BlackFideId "24172936"]
[WhiteElo "2512"]
[BlackElo "2069"]
[Result "1-0"]
[Round "10"]
[TimeControl "180+1"]
[Date "2021.10.05"]
[WhiteClock "0:00:31"]
[BlackClock "0:01:44"]

1. e4 {[%clk 0:02:55]}  d6 {[%clk 0:02:59]} 2. d4 {[%clk 0:02:55]}  Nf6 {[%clk 0:02:58]} 3. Nc3 {[%clk 0:02:55]}  g6 {[%clk 0:02:58]} 4. f4 {[%clk 0:02:55]}  Bg7 {[%clk 0:02:58]} 5. Nf3 {[%clk 0:02:56]}  O-O {[%clk 0:02:59]} 6. a3 {[%clk 0:02:56]}  c5 {[%clk 0:02:52]} 7. dxc5 {[%clk 0:02:56]}  dxc5 {[%clk 0:02:52]} 8. Qxd8 {[%clk 0:02:52]}  Rxd8 {[%clk 0:02:53]} 9. e5 {[%clk 0:02:53]}  Nd5 {[%clk 0:02:52]} 10. Nxd5 {[%clk 0:02:51]}  Rxd5 {[%clk 0:02:52]} 11. Bc4 {[%clk 0:02:49]}  Rd8 {[%clk 0:02:50]} 12. Be3 {[%clk 0:02:50]}  b6 {[%clk 0:02:48]} 13. Kf2 {[%clk 0:02:43]}  Nc6 {[%clk 0:02:45]} 14. Rad1 {[%clk 0:02:41]}  Bb7 {[%clk 0:02:45]} 15. c3 {[%clk 0:02:17]}  e6 {[%clk 0:02:44]} 16. b4 {[%clk 0:01:58]}  cxb4 {[%clk 0:02:42]} 17. cxb4 {[%clk 0:01:59]}  Ne7 {[%clk 0:02:39]} 18. Be2 {[%clk 0:01:56]}  Nd5 {[%clk 0:02:37]} 19. h4 {[%clk 0:01:51]}  Nc3 {[%clk 0:02:36]} 20. Rxd8+ {[%clk 0:01:49]}  Rxd8 {[%clk 0:02:34]} 21. Rc1 {[%clk 0:01:43]}  Nxe2 {[%clk 0:02:30]} 22. Kxe2 {[%clk 0:01:43]}  Rc8 {[%clk 0:02:27]} 23. Rxc8+ {[%clk 0:01:33]}  Bxc8 {[%clk 0:02:27]} 24. g4 {[%clk 0:01:34]}  Bf8 {[%clk 0:02:22]} 25. Nd2 {[%clk 0:01:28]}  a5 {[%clk 0:02:20]} 26. Bxb6 {[%clk 0:01:26]}  axb4 {[%clk 0:02:20]} 27. axb4 {[%clk 0:01:27]}  Bxb4 {[%clk 0:02:19]} 28. Ne4 {[%clk 0:01:27]}  Ba6+ {[%clk 0:02:18]} 29. Kf2 {[%clk 0:01:25]}  Be7 {[%clk 0:02:17]} 30. Kg3 {[%clk 0:01:21]}  Bd3 {[%clk 0:02:14]} 31. Nd2 {[%clk 0:00:51]}  Be2 {[%clk 0:02:13]} 32. Nb3 {[%clk 0:00:49]}  Bd1 {[%clk 0:02:12]} 33. Nd4 {[%clk 0:00:45]}  h5 {[%clk 0:02:11]} 34. g5 {[%clk 0:00:42]}  Bb4 {[%clk 0:02:10]} 35. Nc6 {[%clk 0:00:39]}  Be1+ {[%clk 0:02:09]} 36. Bf2 {[%clk 0:00:39]}  Bc3 {[%clk 0:01:58]} 37. Bd4 {[%clk 0:00:39]}  Bd2 {[%clk 0:01:57]} 38. Nb8 {[%clk 0:00:30]}  Ba4 {[%clk 0:01:56]} 39. Na6 {[%clk 0:00:30]}  Bb5 {[%clk 0:01:52]} 40. Nc5 {[%clk 0:00:29]}  Bc4 {[%clk 0:01:52]} 41. Ne4 {[%clk 0:00:28]}  Bd3 {[%clk 0:01:51]} 42. Nxd2 {[%clk 0:00:27]}  Bc2 {[%clk 0:01:50]} 43. Kf2 {[%clk 0:00:27]}  Bd3 {[%clk 0:01:50]} 44. Ke3 {[%clk 0:00:27]}  Bb5 {[%clk 0:01:50]} 45. Bc5 {[%clk 0:00:27]}  Ba4 {[%clk 0:01:49]} 46. Be7 {[%clk 0:00:27]}  Be8 {[%clk 0:01:48]} 47. Bf6 {[%clk 0:00:28]}  Bb5 {[%clk 0:01:48]} 48. Kd4 {[%clk 0:00:29]}  Ba4 {[%clk 0:01:48]} 49. Kc5 {[%clk 0:00:30]}  Bc2 {[%clk 0:01:48]} 50. Kd6 {[%clk 0:00:31]}  Bd3 {[%clk 0:01:49]} 51. Nb3 {[%clk 0:00:29]}  Bc4 {[%clk 0:01:49]} 52. Nc5 {[%clk 0:00:30]}  Bb5 {[%clk 0:01:49]} 53. Nb7 {[%clk 0:00:29]}  Ba6 {[%clk 0:01:49]} 54. Nd8 {[%clk 0:00:30]}  Bb5 {[%clk 0:01:49]} 55. Ke7 {[%clk 0:00:30]}  Kh7 {[%clk 0:01:46]} 56. Nxf7 {[%clk 0:00:29]}  Bc4 {[%clk 0:01:45]} 57. Nd8 {[%clk 0:00:30]}  Bd5 {[%clk 0:01:45]} 58. Nxe6 {[%clk 0:00:31]}  Bxe6 {[%clk 0:01:44]} 59. Kxe6 {[%clk 0:00:31]} 1-0


[Site "https://www.chess.com"]

[Event "Titled Tuesday Blitz October 5 2021"]
[White "Gimenez Aguirre, Alejo Ismael"]
[Black "Nilsen, Tobias Lang"]
[WhiteFideId "32041667"]
[BlackFideId "1521624"]
[WhiteElo "2031"]
[BlackElo "1975"]
[Result "1-0"]
[Round "10"]
[TimeControl "180+1"]
[Date "2021.10.05"]
[WhiteClock "0:00:53"]
[BlackClock "0:00:48"]

1. e4 {[%clk 0:03:00]}  e6 {[%clk 0:02:56]} 2. d4 {[%clk 0:03:00]}  d5 {[%clk 0:02:56]} 3. Nd2 {[%clk 0:03:00]}  c5 {[%clk 0:02:52]} 4. Ngf3 {[%clk 0:02:59]}  Nc6 {[%clk 0:02:51]} 5. Bb5 {[%clk 0:02:59]}  cxd4 {[%clk 0:02:50]} 6. Nxd4 {[%clk 0:02:57]}  Bd7 {[%clk 0:02:50]} 7. Nxc6 {[%clk 0:02:56]}  bxc6 {[%clk 0:02:49]} 8. Bd3 {[%clk 0:02:57]}  Bd6 {[%clk 0:02:47]} 9. O-O {[%clk 0:02:56]}  Qc8 {[%clk 0:02:47]} 10. f4 {[%clk 0:02:43]}  Ne7 {[%clk 0:02:45]} 11. Nf3 {[%clk 0:02:39]}  Qc7 {[%clk 0:02:41]} 12. e5 {[%clk 0:02:34]}  Bc5+ {[%clk 0:02:40]} 13. Kh1 {[%clk 0:02:35]}  h5 {[%clk 0:02:40]} 14. c4 {[%clk 0:02:29]}  Nf5 {[%clk 0:02:36]} 15. Ng5 {[%clk 0:02:24]}  h4 {[%clk 0:02:31]} 16. Bxf5 {[%clk 0:02:23]}  exf5 {[%clk 0:02:31]} 17. b3 {[%clk 0:02:03]}  O-O-O {[%clk 0:02:24]} 18. cxd5 {[%clk 0:01:55]}  cxd5 {[%clk 0:02:22]} 19. b4 {[%clk 0:01:55]}  Bb6 {[%clk 0:02:21]} 20. a4 {[%clk 0:01:53]}  a6 {[%clk 0:02:20]} 21. Qd3 {[%clk 0:01:52]}  Kb7 {[%clk 0:02:19]} 22. Bd2 {[%clk 0:01:49]}  d4 {[%clk 0:02:16]} 23. Rfc1 {[%clk 0:01:40]}  Qb8 {[%clk 0:02:10]} 24. Nxf7 {[%clk 0:01:40]}  h3 {[%clk 0:02:09]} 25. Qf3+ {[%clk 0:01:36]}  Ka7 {[%clk 0:02:08]} 26. Nxd8 {[%clk 0:01:31]}  Qxd8 {[%clk 0:02:09]} 27. a5 {[%clk 0:01:20]}  Bc7 {[%clk 0:02:08]} 28. Qd5 {[%clk 0:01:20]}  Bc8 {[%clk 0:01:59]} 29. Qc5+ {[%clk 0:01:18]}  Kb8 {[%clk 0:01:58]} 30. b5 {[%clk 0:01:14]}  hxg2+ {[%clk 0:01:56]} 31. Kg1 {[%clk 0:01:14]}  axb5 {[%clk 0:01:21]} 32. Qxb5+ {[%clk 0:01:12]}  Ka8 {[%clk 0:01:21]} 33. Qc6+ {[%clk 0:01:05]}  Kb8 {[%clk 0:01:17]} 34. a6 {[%clk 0:00:59]}  Bb6 {[%clk 0:01:08]} 35. a7+ {[%clk 0:00:52]}  Bxa7 {[%clk 0:01:06]} 36. Rcb1+ {[%clk 0:00:53]}  Bb6 {[%clk 0:00:54]} 37. Rxb6+ {[%clk 0:00:52]}  Qxb6 {[%clk 0:00:48]} 38. Ra8# {[%clk 0:00:53]} 1-0


[Site "https://www.chess.com"]

[Event "Titled Tuesday Blitz October 5 2021"]
[White "Girinath, P.D.S."]
[Black "Horobetz, Graham"]
[WhiteFideId "5000572"]
[BlackFideId "2047322"]
[WhiteElo "2333"]
[BlackElo "2625"]
[Result "0-1"]
[Round "10"]
[TimeControl "180+1"]
[Date "2021.10.05"]
[WhiteClock "0:00:01"]
[BlackClock "0:01:14"]

1. e4 {[%clk 0:03:00]}  c5 {[%clk 0:02:57]} 2. Nf3 {[%clk 0:03:00]}  d6 {[%clk 0:02:56]} 3. Bb5+ {[%clk 0:03:00]}  Nd7 {[%clk 0:02:56]} 4. O-O {[%clk 0:02:58]}  a6 {[%clk 0:02:54]} 5. Bxd7+ {[%clk 0:02:57]}  Bxd7 {[%clk 0:02:55]} 6. d4 {[%clk 0:02:58]}  cxd4 {[%clk 0:02:55]} 7. Qxd4 {[%clk 0:02:58]}  Nf6 {[%clk 0:02:54]} 8. Bg5 {[%clk 0:02:41]}  e6 {[%clk 0:02:54]} 9. c4 {[%clk 0:02:39]}  b5 {[%clk 0:02:51]} 10. Rd1 {[%clk 0:02:21]}  Rc8 {[%clk 0:02:46]} 11. cxb5 {[%clk 0:02:11]}  axb5 {[%clk 0:02:46]} 12. e5 {[%clk 0:02:03]}  dxe5 {[%clk 0:02:41]} 13. Nxe5 {[%clk 0:02:03]}  Be7 {[%clk 0:02:17]} 14. Nxd7 {[%clk 0:01:44]}  Nxd7 {[%clk 0:02:10]} 15. Qxg7 {[%clk 0:01:37]}  Bf6 {[%clk 0:02:10]} 16. Bxf6 {[%clk 0:01:23]}  Qxf6 {[%clk 0:02:09]} 17. Qxf6 {[%clk 0:01:22]}  Nxf6 {[%clk 0:02:10]} 18. Nc3 {[%clk 0:01:18]}  b4 {[%clk 0:02:09]} 19. Nb5 {[%clk 0:01:17]}  Ke7 {[%clk 0:02:09]} 20. Rac1 {[%clk 0:01:03]}  Nd5 {[%clk 0:01:59]} 21. Nd4 {[%clk 0:00:51]}  Ra8 {[%clk 0:01:52]} 22. Rc4 {[%clk 0:00:37]}  Rhc8 {[%clk 0:01:43]} 23. Rxc8 {[%clk 0:00:31]}  Rxc8 {[%clk 0:01:44]} 24. g3 {[%clk 0:00:30]}  Ra8 {[%clk 0:01:44]} 25. a3 {[%clk 0:00:22]}  bxa3 {[%clk 0:01:43]} 26. bxa3 {[%clk 0:00:23]}  Rxa3 {[%clk 0:01:43]} 27. Kg2 {[%clk 0:00:13]}  Ra2 {[%clk 0:01:41]} 28. Kf3 {[%clk 0:00:12]}  h5 {[%clk 0:01:39]} 29. h4 {[%clk 0:00:11]}  Kf6 {[%clk 0:01:38]} 30. Rc1 {[%clk 0:00:05]}  Ra3+ {[%clk 0:01:37]} 31. Kg2 {[%clk 0:00:05]}  Ra4 {[%clk 0:01:34]} 32. Nf3 {[%clk 0:00:05]}  Ra2 {[%clk 0:01:34]} 33. Kg1 {[%clk 0:00:04]}  Nb4 {[%clk 0:01:32]} 34. Ng5 {[%clk 0:00:03]}  Kg6 {[%clk 0:01:27]} 35. Rc3 {[%clk 0:00:01]}  Nd5 {[%clk 0:01:26]} 36. Rf3 {[%clk 0:00:01]}  Ra1+ {[%clk 0:01:26]} 37. Kg2 {[%clk 0:00:01]}  Ra7 {[%clk 0:01:23]} 38. Ne4 {[%clk 0:00:01]}  Rc7 {[%clk 0:01:19]} 39. Ng5 {[%clk 0:00:01]}  Re7 {[%clk 0:01:18]} 40. Nh3 {[%clk 0:00:01]}  e5 {[%clk 0:01:17]} 41. Rd3 {[%clk 0:00:01]}  Rd7 {[%clk 0:01:14]} 0-1


[Site "https://www.chess.com"]